bitfinex/quotes_ETHUSD_20250722
["timestamp","ask_amount","ask_price","bid_price","bid_amount"]
[1753219119844,3.16207363,3711.3,3710.5,2.69603978]
[1753219119845,0.4676,3711.3,3710.5,2.69603978]
[1753219120168,2.69469814,3711.0,3710.8,0.1344]
[1753219120367,3.16029814,3711.0,3710.9,4.096]
[1753219120572,0.4656,3711.0,3710.9,4.096]
[1753219122249,3.16029457,3711.0,3710.9,4.096]
[1753219122677,3.16029457,3711.0,3710.8,0.1344]
[1753219122888,2.69469457,3711.0,3710.9,4.095]
[1753219123090,0.4656,3711.0,3710.8,0.1344]
[1753219123387,0.4656,3710.9,3710.8,4.2294]
[1753219124834,0.4656,3710.9,3710.8,0.1344]
[1753219125039,0.4656,3710.9,3710.8,4.2294]
[1753219126481,0.4656,3710.9,3710.8,0.1344]
[1753219126681,0.4656,3710.9,3710.8,4.2284]
[1753219127948,2.69464836,3711.1,3710.8,4.2284]
[1753219128450,3.15884836,3711.1,3710.8,4.2284]
[1753219128680,0.4642,3711.0,3710.8,4.2284]
[1753219129288,2.69482292,3710.9,3710.8,4.093]
[1753219129597,3.15902292,3710.9,3710.8,4.093]
[1753219129796,2.69487788,3710.8,3710.6,4.2274]
[1753219130005,0.4642,3710.7,3710.6,4.2274]
[1753219130202,2.69498194,3710.6,3710.5,0.001]
[1753219130753,3.15918194,3710.6,3710.5,0.001]
[1753219131155,3.70918194,3710.6,3710.5,0.001]
[1753219131585,0.1344,3710.7,3710.5,0.001]
[1753219131765,2.69455954,3711.2,3710.6,2.69498194]
[1753219131977,2.69455954,3711.2,3710.6,3.16328194]
[1753219132413,2.83089594,3711.3,3710.7,2.6949046]
[1753219132801,2.83089594,3711.3,3710.5,4.095]
[1753219132802,0.1364,3711.3,3710.5,4.095]
[1753219132954,0.1364,3711.3,3710.8,0.6027]
[1753219133155,2.8308753,3711.3,3710.8,0.6027]
[1753219133355,0.1364,3711.3,3710.8,3.29753655]
[1753219133956,0.1364,3711.3,3710.8,0.6027]
[1753219134509,0.1364,3711.3,3710.9,2.69475512]
[1753219134989,0.1364,3711.3,3710.9,3.1630338]
[1753219136870,0.1364,3711.3,3710.9,0.4683]
[1753219137805,0.1364,3711.3,3710.9,3.16305357]
[1753219137990,0.002,3711.3,3711.2,2.69454623]
[1753219138301,0.002,3711.3,3711.2,2.82894623]
[1753219138499,0.002,3711.3,3711.2,3.29724623]
[1753219139588,0.002,3711.3,3711.2,0.1344]
[1753219139788,0.002,3711.3,3711.2,6.92494623]
[1753219140201,0.002,3711.3,3711.2,4.2304]
[1753219140405,0.002,3711.3,3711.2,5.27195376]
[1753219140766,0.002,3711.3,3711.2,8.43479999]
[1753219142907,0.002,3711.3,3711.2,5.74025376]
[1753219143072,0.002,3711.3,3711.2,4.2304]
[1753219143404,0.002,3711.3,3711.2,6.92494623]
[1753219143720,0.002,3711.3,3711.2,7.39324623]
[1753219151308,0.4662,3711.3,3710.7,0.8194]
[1753219151474,3.16067794,3711.3,3711.0,0.1344]
[1753219151679,0.4642,3711.2,3711.1,4.093]
[1753219153195,0.4642,3711.2,3711.0,4.2274]
[1753219153880,3.158761,3711.2,3711.0,4.2274]
[1753219154703,0.4642,3711.1,3711.0,4.2274]
[1753219155210,2.69650157,3711.3,3711.0,4.2274]
[1753219155411,0.4642,3711.2,3711.0,4.2274]
[1753219155613,2.69461884,3711.1,3711.0,4.2274]
[1753219155813,0.4642,3711.2,3711.0,4.2274]
[1753219155986,0.4642,3711.1,3711.0,4.2274]
[1753219156608,3.15881884,3711.1,3711.0,4.2274]
[1753219158231,3.09461884,3711.1,3711.0,0.1344]
[1753219158410,2.69489703,3710.8,3710.6,0.1344]
[1753219158724,2.69478545,3710.9,3710.6,0.1344]
[1753219158925,3.13484742,3710.8,3710.6,0.1344]
[1753219159715,3.09464878,3711.1,3710.6,0.1344]
[1753219159916,2.69477716,3710.9,3710.6,0.1344]
[1753219160126,3.13471817,3711.0,3710.6,0.1344]
[1753219162498,2.69476811,3710.9,3710.6,0.1344]
[1753219162700,0.4,3711.1,3710.6,2.82937154]
[1753219163030,2.69470452,3711.0,3710.6,0.5659]
[1753219164119,3.13463233,3711.1,3710.6,0.5659]
[1753219164831,0.1344,3711.2,3710.7,2.6949091]
[1753219165137,0.5744,3711.2,3710.7,1.2387]
[1753219165299,2.69471219,3711.0,3710.7,1.2387]
[1753219165494,2.69471219,3711.0,3710.7,0.8072]
[1753219165709,2.69464438,3711.1,3710.7,0.8072]
[1753219166197,2.69469386,3711.0,3710.7,0.8072]
[1753219166598,3.13464229,3711.1,3710.7,0.8072]
[1753219167131,2.69477246,3710.9,3710.6,0.1344]
[1753219167331,3.13471455,3711.0,3710.6,0.1344]
[1753219167534,2.69490931,3710.7,3710.5,0.001]
[1753219167703,0.4,3710.7,3710.5,0.001]
[1753219167895,0.84,3710.7,3710.5,0.001]
[1753219168096,2.82919475,3710.9,3710.5,0.001]
[1753219168296,2.69484006,3710.8,3710.5,0.001]
[1753219168539,2.69493583,3710.7,3710.5,0.001]
[1753219168908,3.13493583,3710.7,3710.5,0.001]
[1753219169967,2.69498194,3710.6,3710.5,0.001]
[1753219170439,3.13498194,3710.6,3710.5,0.001]
[1753219171037,0.44,3710.6,3710.5,0.001]
[1753219172233,3.13498194,3710.6,3710.5,0.001]
[1753219172805,0.44,3710.6,3710.5,0.001]
[1753219173447,3.13498194,3710.6,3710.5,0.001]
[1753219173650,0.64317946,3710.6,3710.5,0.001]
[1753219173865,0.20317946,3710.6,3710.5,0.001]
[1753219174025,2.69491484,3710.7,3710.5,0.001]
[1753219174718,0.44,3710.7,3710.5,0.001]
[1753219175568,3.13492164,3710.7,3710.5,0.001]
[1753219175855,0.44,3710.7,3710.5,0.001]
[1753219177258,3.13491111,3710.7,3710.5,0.001]
[1753219178369,3.13498194,3710.6,3710.5,0.001]
[1753219178578,0.44,3710.7,3710.5,0.001]
[1753219179132,2.69489253,3710.8,3710.5,0.001]
[1753219179429,4.096,3711.1,3710.5,2.69601277]
[1753219179773,4.096,3711.1,3710.6,0.5659]
[1753219180068,4.096,3711.1,3710.5,0.35317648]
[1753219180069,4.095,3711.1,3711.0,0.1344]
[1753219180268,0.002,3711.1,3711.0,0.1344]
[1753219182345,0.002,3711.1,3711.0,0.5659]
[1753219183396,0.002,3711.1,3711.0,0.1344]
[1753219184377,0.002,3711.1,3711.0,2.82909145]
[1753219185011,0.002,3711.1,3711.0,3.26059145]
[1753219185438,0.002,3711.1,3711.0,0.5659]
[1753219185638,0.002,3711.1,3711.0,0.1344]
[1753219186466,0.002,3711.1,3711.0,2.82909145]
[1753219186667,0.002,3711.1,3711.0,3.26059145]
[1753219186883,0.002,3711.1,3711.0,0.1344]
[1753219188077,0.002,3711.1,3711.0,2.82909145]
[1753219189380,0.002,3711.1,3711.0,3.30399145]
[1753219191376,0.002,3711.1,3711.0,0.1344]
[1753219192477,0.002,3711.1,3711.0,2.82909145]
[1753219193595,0.002,3711.1,3711.0,3.30399145]
[1753219195173,0.002,3711.1,3711.0,2.82909145]
[1753219197270,0.002,3711.1,3711.0,0.1344]
[1753219197472,0.002,3711.1,3711.0,2.82909145]
[1753219199013,0.002,3711.1,3711.0,0.1344]
[1753219200524,0.002,3711.1,3711.0,0.6093]
[1753219201625,0.002,3711.1,3711.0,3.30399145]
[1753219201828,0.002,3711.1,3711.0,0.6093]
[1753219202525,0.002,3711.1,3711.0,3.30399145]
[1753219203728,0.002,3711.1,3711.0,0.6093]
[1753219204022,0.002,3711.1,3711.0,0.1344]
[1753219207125,0.002,3711.1,3711.0,0.6093]
[1753219208143,0.002,3711.1,3711.0,3.30399145]
[1753219208344,0.002,3711.1,3711.0,0.6093]
[1753219208639,0.002,3711.1,3711.0,3.30399145]
[1753219209346,0.952,3711.1,3711.0,0.1344]
[1753219209549,0.952,3711.1,3710.5,0.001]
[1753219209550,3.64498194,3710.6,3710.5,0.001]
[1753219209718,6.64498194,3710.6,3710.5,0.001]
[1753219210114,7.07488194,3710.6,3710.5,0.001]
[1753219210847,7.07488194,3710.6,3710.5,1e-08]
[1753219211664,7.07488194,3710.6,3709.6,1e-08]
[1753219211665,6.24563576,3709.7,3709.6,1e-08]
[1753219211848,16.43456209,3709.7,3709.6,1e-08]
[1753219212053,16.99886209,3709.7,3709.6,1e-08]
[1753219212837,17.39886209,3709.7,3709.6,1e-08]
[1753219213240,17.39886209,3709.7,3708.4,0.001]
[1753219213472,6.64650802,3708.5,3708.4,0.001]
[1753219213676,12.74343435,3708.5,3708.4,0.001]
[1753219213862,17.26533435,3708.5,3708.4,0.001]
[1753219214263,0.95,3708.2,3708.1,1e-08]
[1753219214465,6.64701709,3707.8,3707.7,1e-08]
[1753219214671,3.24781746,3706.7,3706.6,0.001]
[1753219214847,7.33981746,3706.7,3706.6,0.001]
[1753219215046,7.76971746,3706.7,3706.6,0.001]
[1753219215277,3.24781746,3706.7,3706.6,0.001]
[1753219215479,7.34081746,3706.7,3706.6,0.001]
[1753219216270,7.77071746,3706.7,3706.6,0.001]
[1753219217683,7.34281746,3706.7,3706.6,0.001]
[1753219218375,7.77231746,3706.7,3706.6,0.001]
[1753219218573,13.86924379,3706.7,3706.6,0.001]
[1753219218916,14.26924379,3706.7,3706.6,0.001]
[1753219220193,14.27124379,3706.7,3706.6,0.001]
[1753219220493,10.17424379,3706.7,3706.6,0.001]
[1753219220694,7.74481746,3706.7,3706.6,0.001]
[1753219221367,8.17431746,3706.7,3706.6,0.001]
[1753219223207,7.74481746,3706.7,3706.6,0.001]
[1753219223775,0.55,3706.7,3706.6,0.001]
[1753219223979,7.34481746,3706.7,3706.6,0.001]
[1753219224178,4.647,3706.7,3706.6,0.001]
[1753219225925,7.34481746,3706.7,3706.6,0.001]
[1753219226236,4.647,3706.7,3706.6,0.001]
[1753219226834,7.34481746,3706.7,3706.6,0.001]
[1753219227034,4.097,3706.7,3706.6,0.4671]
[1753219227226,7.34481746,3706.7,3706.6,0.001]
[1753219230610,7.77431746,3706.7,3706.6,0.001]
[1753219232311,8.17431746,3706.7,3706.6,0.001]
[1753219233311,11.17431746,3706.7,3706.6,0.001]
[1753219234654,6.24796303,3706.5,3706.4,1e-08]
[1753219234850,10.34496303,3706.5,3706.4,1e-08]
[1753219235262,10.77446303,3706.5,3706.4,1e-08]
[1753219235951,6.24796303,3706.5,3706.4,1e-08]
[1753219236152,10.34596303,3706.5,3706.4,1e-08]
[1753219239981,6.24796303,3706.5,3706.4,1e-08]
[1753219240184,10.34496303,3706.5,3706.4,1e-08]
[1753219240584,4.097,3706.5,3706.4,1e-08]
[1753219240781,6.92936303,3706.5,3706.4,1e-08]
[1753219240981,4.7814,3706.5,3706.4,1e-08]
[1753219241198,7.47936303,3706.5,3706.4,0.46610001]
[1753219241355,4.7814,3706.5,3706.4,0.46610001]
[1753219241987,0.4295,3707.1,3706.4,0.46610001]
[1753219241988,0.4,3707.8,3707.0,2.69754956]
[1753219242147,0.1344,3707.5,3707.1,0.73585496]
[1753219242487,0.1344,3707.5,3707.2,0.4661]
[1753219242798,4.2364,3707.8,3707.3,0.8176]
[1753219243001,4.2364,3707.8,3707.4,0.4661]
[1753219243167,4.2364,3707.8,3707.5,0.4661]
[1753219243374,4.2364,3707.8,3707.6,0.4661]
[1753219243589,0.1344,3707.8,3707.6,0.4661]
[1753219244397,0.002,3708.2,3707.7,0.4661]
[1753219244698,4.102,3708.1,3707.8,0.4661]
[1753219244897,4.102,3708.1,3707.6,0.1344]
[1753219245060,4.102,3708.1,3707.9,0.4661]
[1753219245261,0.1364,3708.2,3708.0,0.4661]
[1753219245464,0.1364,3708.2,3707.6,0.1344]
[1753219245671,0.002,3708.2,3708.1,1.2735]
[1753219250073,0.002,3708.2,3708.1,0.8074]
[1753219250268,0.002,3708.2,3708.1,1.62636443]
[1753219250777,0.002,3708.2,3708.1,4.32316332]
[1753219250975,0.002,3708.2,3708.1,4.45756332]
[1753219252312,0.002,3708.2,3708.1,4.4845313]
[1753219254308,0.002,3708.2,3708.1,7.4845313]
[1753219254612,0.002,3708.2,3708.1,7.45756332]
[1753219263831,0.002,3708.2,3708.1,7.73359889]
[1753219264230,0.002,3708.2,3708.1,8.18869889]
[1753219264924,0.002,3708.2,3708.1,4.2304]
[1753219266227,0.002,3708.2,3708.1,0.1344]
[1753219269949,0.002,3708.2,3708.1,2.83119889]
[1753219270174,0.002,3708.2,3708.1,0.1344]
[1753219270817,0.002,3708.2,3708.1,2.83119889]
[1753219273045,0.002,3708.2,3708.1,6.92619889]
[1753219276671,1e-08,3708.2,3708.1,12.27674305]
[1753219279966,1e-08,3708.2,3708.1,6.92619889]
[1753219282428,1e-08,3708.2,3708.1,2.83119889]
[1753219282629,1e-08,3708.2,3708.1,6.92619889]
[1753219282881,1e-08,3708.2,3708.1,0.1344]
[1753219283253,0.43680001,3708.2,3708.1,4.2294]
[1753219283455,3.09672618,3708.2,3707.5,0.8133]
[1753219283677,3.53352618,3708.2,3707.7,0.1344]
[1753219283899,3.53352618,3708.2,3707.8,4.095]
[1753219283900,0.4368,3708.1,3707.8,4.095]
[1753219284048,0.4368,3708.0,3707.8,4.095]
[1753219284248,3.13378733,3707.9,3707.7,0.1344]
[1753219284556,0.4368,3707.8,3707.7,4.095]
[1753219285364,0.1344,3708.0,3707.7,4.095]
[1753219285563,0.5712,3708.0,3707.7,4.095]
[1753219286355,0.1344,3708.0,3707.7,4.095]
[1753219286657,0.4368,3707.9,3707.7,4.095]
[1753219286863,2.83127744,3708.0,3707.7,4.095]
[1753219287192,0.4368,3707.8,3707.7,4.095]
[1753219288151,0.1344,3708.0,3707.7,4.095]
[1753219288351,0.4368,3707.9,3707.7,4.095]
[1753219290849,3.24730808,3707.4,3707.3,0.001]
[1753219291286,3.68410808,3707.4,3707.3,0.001]
[1753219291593,4.08410808,3707.4,3707.3,0.001]
[1753219292200,4.08410808,3707.4,3707.3,1e-08]
[1753219292201,7.08410808,3707.4,3707.3,1e-08]
[1753219292494,7.21830781,3707.4,3707.3,1e-08]
[1753219292923,7.21830781,3707.4,3706.4,1e-08]
[1753219292924,0.55,3705.7,3704.8,1e-08]
[1753219293130,3.55,3707.3,3704.8,1e-08]
[1753219293131,12.35716745,3704.9,3704.8,1e-08]
[1753219293294,11.60044619,3704.9,3704.8,1e-08]
[1753219293479,12.03724619,3704.9,3704.8,1e-08]
[1753219294151,12.43724619,3704.9,3704.8,1e-08]
[1753219294428,12.63955645,3704.9,3704.8,1e-08]
[1753219294781,11.45323844,3704.9,3704.8,1e-08]
[1753219296230,0.95,3704.9,3704.8,1e-08]
[1753219296578,0.4,3705.4,3704.8,1e-08]
[1753219296817,0.4,3705.8,3705.3,2.69877539]
[1753219297122,4.565,3705.8,3705.0,2.69905533]
[1753219297334,0.55,3705.7,3705.0,2.69899074]
[1753219297544,4.565,3705.8,3705.1,2.69897277]
[1753219297694,4.565,3705.8,3705.2,2.69889454]
[1753219297918,0.55,3705.7,3705.0,2.69905358]
[1753219298633,0.55,3705.5,3704.8,1e-08]
[1753219298837,0.55,3705.0,3704.8,1e-08]
[1753219299418,0.14079999,3704.5,3704.2,3.48322339]
[1753219300253,0.14079999,3704.5,3704.2,3.38322339]
[1753219300416,0.14079999,3704.5,3704.2,0.6836]
[1753219300617,0.55,3704.4,3703.8,2.69992201]
[1753219300951,3.74965968,3704.2,3703.1,0.4533]
[1753219301137,0.55,3704.0,3703.1,0.4533]
[1753219301326,0.55,3703.8,3703.1,0.4533]
[1753219301531,0.55,3703.3,3702.7,2.70071138]
[1753219301726,3.25022233,3703.4,3702.7,2.70071138]
[1753219302061,3.25022233,3703.4,3702.7,3.15401138]
[1753219302813,0.55,3703.4,3702.8,2.7006543]
[1753219303165,3.25022847,3703.4,3702.8,0.1344]
[1753219303521,0.55,3703.4,3702.8,2.83504139]
[1753219303966,0.55,3703.8,3703.1,2.70038482]
[1753219304169,0.55,3703.8,3703.2,0.1344]
[1753219304525,0.55,3703.8,3703.4,2.700169]
[1753219304737,0.55,3703.8,3703.4,3.153469]
[1753219305416,0.55,3703.8,3703.5,2.70009452]
[1753219305952,0.75679294,3703.8,3703.5,2.70009452]
[1753219307053,0.75679294,3703.8,3703.5,2.70109452]
[1753219307350,0.1344,3704.1,3703.7,2.69995703]
[1753219307541,0.55,3704.0,3703.6,0.437]
[1753219307745,0.6844,3704.1,3703.6,0.437]
[1753219307915,0.55,3704.0,3703.8,2.69992302]
[1753219308119,0.55,3704.0,3703.7,2.69998093]
[1753219308450,0.55,3704.0,3703.8,2.69991997]
[1753219308840,0.75241542,3704.0,3703.8,2.69991997]
[1753219309854,0.75241542,3704.0,3703.7,2.69998118]
[1753219310057,0.75241542,3704.0,3703.6,0.437]
[1753219310221,0.75241542,3704.0,3703.5,3.4683305]
[1753219310416,0.75241542,3704.0,3703.5,2.7011305]
[1753219310956,2.69986408,3703.9,3703.5,0.001]
[1753219311143,1.19271542,3704.0,3703.5,0.001]
[1753219311461,0.55,3703.7,3703.5,0.001]
[1753219311954,0.9903,3703.7,3703.5,0.001]
[1753219312661,0.55,3703.7,3703.5,0.001]
[1753219314647,4.158,3703.7,3703.5,0.001]
[1753219315659,4.158,3703.7,3703.5,2.70114085]
[1753219316062,0.20494612,3704.0,3703.5,2.70114085]
[1753219316261,1.32239345,3704.4,3704.0,2.69976168]
[1753219316459,1.32239345,3704.4,3704.1,2.69970234]
[1753219316768,1.32239345,3704.4,3704.3,2.69956536]
[1753219316968,1.32239345,3704.4,3704.3,3.13656536]
[1753219317168,4.16,3704.6,3704.5,2.69941962]
[1753219317355,4.3620647,3704.6,3704.5,2.69941962]
[1753219317687,4.3620647,3704.6,3703.8,2.69989782]
[1753219317688,0.5,3705.1,3703.6,6.46814085]
[1753219317886,4.16,3705.0,3704.5,2.69936867]
[1753219318035,0.7,3704.6,3704.5,2.69936867]
[1753219318863,4.159,3704.8,3704.5,2.69936867]
[1753219320068,4.159,3704.8,3704.6,2.69934228]
[1753219320280,0.55,3705.0,3704.8,2.69916812]
[1753219320436,4.157,3704.9,3704.3,0.7762]
[1753219320639,0.55,3704.8,3704.4,2.69944842]
[1753219320837,0.55,3704.8,3704.3,0.7762]
[1753219320838,0.55,3704.8,3704.5,2.69940244]
[1753219321155,0.55,3704.8,3704.1,3.47589552]
[1753219321356,0.55,3704.8,3704.4,2.69948704]
[1753219321580,0.55,3704.8,3704.1,0.7762]
[1753219321736,0.9903,3704.8,3704.2,2.69958815]
[1753219321933,3.68950345,3704.8,3704.1,2.69970796]
[1753219322168,3.68950345,3704.8,3704.1,2.69964388]
[1753219322370,1.19611526,3704.8,3704.2,2.69963324]
[1753219322861,1.19611526,3704.8,3704.3,2.69956308]
[1753219323068,0.55,3704.6,3704.0,3.13678004]
[1753219323247,0.55,3704.6,3704.0,0.437]
[1753219323653,0.55,3704.6,3704.2,2.69962227]
[1753219323972,0.55,3704.6,3704.1,2.69969816]
[1753219324476,0.55,3704.6,3704.1,3.13669816]
[1753219326068,0.55,3704.6,3704.2,2.69963454]
[1753219326244,4.155,3704.7,3704.2,2.69963454]
[1753219326245,0.55,3704.7,3704.2,3.27103454]
[1753219326444,4.703,3704.7,3704.3,0.437]
[1753219326990,7.40227782,3704.7,3704.3,0.437]
[1753219327485,7.40227782,3704.7,3704.2,0.1344]
[1753219327842,7.40227782,3704.7,3704.2,0.5714]
[1753219328037,4.703,3704.7,3704.2,3.27103518]
[1753219328444,7.4022892,3704.7,3704.2,0.5714]
[1753219328644,4.703,3704.7,3704.2,0.5714]
[1753219328852,4.703,3704.7,3704.2,0.1344]
[1753219329191,4.702,3704.7,3704.3,0.437]
[1753219329384,4.702,3704.7,3704.3,3.1365219]
[1753219329874,4.702,3704.7,3704.3,3.13651911]
[1753219330045,4.702,3704.7,3704.3,0.437]
[1753219330377,4.701,3704.7,3704.3,0.437]
[1753219330764,4.701,3704.7,3704.3,3.13656398]
[1753219331174,4.701,3704.7,3704.3,0.437]
[1753219331677,4.701,3704.7,3704.3,3.13655814]
[1753219331893,0.552,3704.7,3704.3,3.13655814]
[1753219332192,4.149,3704.6,3704.3,3.13655814]
[1753219332396,4.699,3704.7,3704.3,3.13655814]
[1753219333764,4.699,3704.7,3704.3,0.437]
[1753219333963,4.699,3704.7,3704.4,0.437]
[1753219334164,4.699,3704.7,3704.4,3.13649184]
[1753219334393,4.699,3704.7,3704.4,2.69949184]
[1753219335294,4.144,3704.6,3704.4,2.69949184]
[1753219335500,0.002,3704.7,3704.6,2.69934675]
[1753219335994,0.002,3704.7,3704.6,3.13634675]
[1753219341800,0.002,3704.7,3704.6,3.16334021]
[1753219343197,0.002,3704.7,3704.6,3.13634675]
[1753219343379,0.002,3704.7,3704.6,4.24997771]
[1753219349077,0.5,3706.9,3704.8,2.69920103]
[1753219349386,1e-08,3706.2,3706.1,6.53045422]
[1753219349567,1e-08,3706.2,3706.1,10.80185422]
[1753219349882,1e-08,3706.2,3706.1,11.24345422]
[1753219350077,1e-08,3706.2,3706.1,12.63763356]
[1753219351308,0.002,3707.9,3707.8,2.69701709]
[1753219351527,0.002,3707.9,3707.8,6.83401709]
[1753219351878,0.002,3707.9,3707.8,7.41001709]
[1753219355899,0.002,3707.9,3707.8,11.21241709]
[1753219356241,0.002,3707.9,3707.8,12.60336935]
[1753219367152,0.002,3707.9,3707.8,18.7083008]
[1753219368368,0.002,3707.9,3707.8,4.52535226]
[1753219368531,0.002,3707.9,3707.8,7.2604]
[1753219368731,0.002,3707.9,3707.8,9.95741709]
[1753219370568,0.002,3707.9,3707.8,9.95641709]
[1753219370984,2.69894436,3707.9,3706.1,1.39417934]
[1753219371272,0.5,3707.1,3706.7,0.1344]
[1753219371436,0.5,3707.1,3706.8,4.137]
[1753219371936,0.4735,3707.0,3706.9,4.136]
[1753219372139,0.4735,3707.0,3706.7,0.1344]
[1753219372353,0.4735,3706.9,3706.8,4.136]
[1753219373181,0.4735,3706.9,3706.7,0.1344]
[1753219373385,0.4735,3706.9,3706.8,4.136]
[1753219375091,0.5,3707.1,3707.0,2.69759913]
[1753219375275,0.5,3707.1,3707.0,6.83359913]
[1753219375453,0.5,3707.1,3707.0,6.96799913]
[1753219375870,0.5,3707.5,3707.0,6.96797785]
[1753219376098,0.5,3707.5,3707.4,2.83170808]
[1753219376269,0.5,3707.5,3707.4,6.96870808]
[1753219377801,0.9735,3707.5,3707.4,4.2714]
[1753219378212,0.9735,3707.5,3707.4,6.96870808]
[1753219380203,0.5,3707.5,3707.4,6.96870808]
[1753219382313,0.502,3707.9,3707.4,4.2714]
[1753219382488,0.502,3707.9,3707.7,2.69707038]
[1753219382677,0.4735,3707.8,3707.7,2.69707038]
[1753219383823,0.002,3707.9,3707.8,2.69701709]
[1753219383979,0.002,3707.9,3707.8,6.82901709]
[1753219386879,0.002,3707.9,3707.8,6.82801709]
[1753219393713,0.002,3707.9,3707.8,2.69701709]
[1753219393906,0.002,3707.9,3707.8,6.82301709]
[1753219394110,0.002,3707.9,3707.8,8.05752651]
[1753219394312,0.002,3707.9,3707.8,11.05752651]
[1753219395302,0.002,3707.9,3707.8,17.16274528]
[1753219398830,0.44,3707.9,3707.8,2.69701709]
[1753219399143,0.44,3707.9,3707.8,6.82301709]
[1753219399304,0.44,3707.9,3707.8,4.126]
[1753219399633,0.44,3707.9,3707.8,6.82301709]
[1753219399836,0.44,3707.9,3707.8,4.126]
[1753219400005,0.44,3707.9,3707.8,6.82301709]
[1753219402033,0.55,3707.8,3707.0,0.7855]
[1753219402333,0.55,3707.6,3707.1,6.82147332]
[1753219402497,0.438,3707.5,3707.1,4.124]
[1753219403328,0.438,3707.4,3707.1,6.82551228]
[1753219403526,0.55,3707.6,3707.1,6.82551228]
[1753219403527,0.438,3707.3,3707.1,6.82551228]
[1753219403730,0.438,3707.3,3707.2,2.6974536]
[1753219404044,0.5,3707.7,3707.4,2.69725411]
[1753219404210,0.938,3707.7,3707.5,2.69722492]
[1753219405227,0.938,3707.7,3707.6,2.69716258]
[1753219405397,0.5,3707.7,3707.6,2.69716258]
[1753219405597,0.5,3707.7,3707.5,2.69721097]
[1753219405804,0.5,3707.7,3707.6,2.69716258]
[1753219406901,0.5,3707.7,3707.5,2.69721997]
[1753219407528,0.002,3707.9,3707.8,2.69701709]
[1753219408818,0.002,3707.9,3707.8,2.83141709]
[1753219409018,0.002,3707.9,3707.8,6.95741709]
[1753219409206,0.002,3707.9,3707.8,8.39575468]
[1753219412442,0.8985,3707.9,3707.8,8.39575468]
[1753219412651,0.8985,3707.9,3707.8,12.21235468]
[1753219412961,1e-08,3708.2,3707.8,12.21235468]
[1753219412962,1e-08,3708.2,3708.1,12.61861766]
[1753219413116,1e-08,3708.2,3708.1,16.74461766]
[1753219413324,1e-08,3708.2,3708.1,17.30881766]
[1753219422469,1e-08,3708.2,3708.1,13.18281766]
[1753219422674,1e-08,3708.2,3708.1,17.30381766]
[1753219422840,1e-08,3708.2,3708.1,19.82353762]
[1753219423685,1e-08,3708.2,3708.1,19.82253762]
[1753219428243,0.002,3708.7,3708.6,12.63075408]
[1753219428442,0.002,3708.7,3708.6,16.74775408]
[1753219428649,0.002,3708.7,3708.6,19.29128116]
[1753219429290,0.002,3708.9,3708.8,2.6962899]
[1753219429488,0.002,3708.9,3708.8,9.84025279]
[1753219429789,0.002,3708.9,3708.8,10.4123899]
[1753219431861,0.002,3709.0,3708.8,10.4123899]
[1753219431862,0.002,3709.0,3708.9,5.6962172]
[1753219432063,0.002,3709.0,3708.9,8.62929603]
[1753219432665,0.002,3709.7,3709.3,2.69592645]
[1753219432982,0.002,3709.7,3709.3,12.94310448]
[1753219433144,0.002,3709.7,3709.3,13.05054522]
[1753219437605,0.002,3709.7,3709.3,16.51524522]
[1753219437776,0.002,3709.7,3709.3,18.7059851]
[1753219441113,0.002,3709.7,3709.3,18.2412851]
[1753219441777,0.002,3709.7,3709.3,18.7059851]
[1753219443083,0.002,3709.7,3709.3,18.2412851]
[1753219443715,0.9407,3709.4,3709.3,2.83032645]
[1753219443920,1.4907,3709.4,3709.3,0.1344]
[1753219444117,1.4907,3709.4,3708.3,0.7644]
[1753219444118,0.9407,3709.4,3709.1,4.109]
[1753219444285,1.052,3709.4,3709.1,4.11]
[1753219444482,1.05,3709.2,3708.9,0.1344]
[1753219444677,1.05,3709.2,3707.7,6.86961877]
[1753219444678,0.5,3708.9,3708.6,4.2444]
[1753219444881,0.4387,3708.8,3708.7,4.11]
[1753219446282,0.4387,3708.8,3708.6,4.2454]
[1753219446817,0.4387,3708.8,3708.6,0.1344]
[1753219447022,0.4387,3708.8,3708.6,4.2444]
[1753219449735,0.4387,3708.8,3708.7,2.6963626]
[1753219449931,0.5,3708.9,3708.7,2.6963626]
[1753219450140,0.5,3708.9,3708.6,6.94081327]
[1753219450443,0.4387,3708.8,3708.7,2.6963626]
[1753219453829,0.4387,3708.8,3708.7,6.8053626]
[1753219456918,0.002,3709.4,3709.3,2.69592645]
[1753219457125,0.002,3709.4,3709.3,6.80492645]
[1753219463528,0.002,3709.4,3709.3,7.24172645]
[1753219463741,0.002,3709.4,3709.3,14.17544522]
[1753219467086,0.002,3709.4,3709.3,14.30984522]
[1753219467365,0.002,3709.4,3709.3,16.01043067]
[1753219469042,0.002,3709.4,3709.3,19.01043067]
[1753219473290,0.002,3709.4,3709.3,19.00943067]
[1753219479428,0.002,3709.4,3709.1,2.69605875]
[1753219479714,0.4731,3709.3,3709.2,6.80399913]
[1753219479878,0.9731,3709.3,3709.2,4.108]
[1753219481383,0.9731,3709.3,3708.7,2.69631331]
[1753219481594,0.4731,3709.2,3708.8,6.80428598]
[1753219481795,0.4731,3709.2,3708.6,0.001]
[1753219481796,0.4731,3709.1,3708.6,0.001]
[1753219481998,0.5,3709.0,3708.6,0.001]
[1753219482197,0.5,3709.0,3708.7,4.108]
[1753219482576,0.5,3709.0,3708.6,0.001]